[Event "*** Titled Tuesday 3|2 Blitz"]
[Site "Chess.com"]
[Date "2016.03.01"]
[Round "1"]
[White "Tirantes"]
[Black "Smirnov_Pavel"]
[Result "0-1"]
[WhiteElo "2224"]
[BlackElo "2518"]
[TimeControl "180+2"]
[EndTime "11:40:56 PST"]
[Termination "Smirnov_Pavel won on time"]

1. c4 {[%clk 0:03:01]} 1... e6 {[%clk 0:03:00]} 2. Nf3 {[%clk 0:02:59.3]} 2...
d5 {[%clk 0:03:00.6]} 3. d4 {[%clk 0:02:59.4]} 3... Nf6 {[%clk 0:03:01.5]} 4.
Nc3 {[%clk 0:02:58.5]} 4... c6 {[%clk 0:03:02.5]} 5. e3 {[%clk 0:02:56.1]} 5...
Nbd7 {[%clk 0:03:03.4]} 6. b3 {[%clk 0:02:56.2]} 6... Bb4 {[%clk 0:03:01.4]} 7.
Bd2 {[%clk 0:02:56.7]} 7... O-O {[%clk 0:02:59.2]} 8. Be2 {[%clk 0:02:56.8]}
8... Qe7 {[%clk 0:02:59.4]} 9. O-O {[%clk 0:02:56.6]} 9... b6 {[%clk 0:02:59]}
10. Qc1 {[%clk 0:02:50.6]} 10... Bb7 {[%clk 0:02:55.5]} 11. a3 {[%clk
0:02:51.2]} 11... Bd6 {[%clk 0:02:55.8]} 12. Qc2 {[%clk 0:02:45.9]} 12... dxc4
{[%clk 0:02:53.6]} 13. bxc4 {[%clk 0:02:44.5]} 13... c5 {[%clk 0:02:52.4]} 14.
a4 {[%clk 0:02:40.6]} 14... a5 {[%clk 0:02:47.8]} 15. Rad1 {[%clk 0:02:28.8]}
15... Rac8 {[%clk 0:02:47.3]} 16. Qb3 {[%clk 0:02:21.8]} 16... cxd4 {[%clk
0:02:45.3]} 17. exd4 {[%clk 0:02:20.9]} 17... Bb4 {[%clk 0:02:46.3]} 18. Rc1
{[%clk 0:02:04.4]} 18... Rfd8 {[%clk 0:02:42.2]} 19. Rfd1 {[%clk 0:02:00.5]}
19... e5 {[%clk 0:02:37.6]} 20. d5 {[%clk 0:01:44.1]} 20... e4 {[%clk 0:02:35]}
21. Ne1 {[%clk 0:01:27.9]} 21... Qe5 {[%clk 0:02:30.3]} 22. g3 {[%clk
0:01:15.1]} 22... Ba6 {[%clk 0:02:22.6]} 23. Bf4 {[%clk 0:01:07.5]} 23... Qe8
{[%clk 0:02:12]} 24. Nb5 {[%clk 0:01:07.1]} 24... Nc5 {[%clk 0:02:12.5]} 25. Qa2
{[%clk 0:01:07.1]} 25... Bxb5 {[%clk 0:02:01.4]} 26. axb5 {[%clk 0:01:00.5]}
26... a4 {[%clk 0:02:02.2]} 27. Qb2 {[%clk 0:00:48.8]} 27... Ba5 {[%clk
0:01:59.1]} 28. Be5 {[%clk 0:00:43.2]} 28... Ncd7 {[%clk 0:01:55.9]} 29. Bd4
{[%clk 0:00:40.9]} 29... Qe7 {[%clk 0:01:55.3]} 30. Ng2 {[%clk 0:00:40.6]} 30...
Ne8 {[%clk 0:01:54.3]} 31. Ne3 {[%clk 0:00:39.5]} 31... g6 {[%clk 0:01:48.6]}
32. Ra1 {[%clk 0:00:39.2]} 32... Nc5 {[%clk 0:01:38.9]} 33. Ng4 {[%clk 0:00:35]}
33... f5 {[%clk 0:01:35.4]} 34. Nf6+ {[%clk 0:00:32.4]} 34... Nxf6 {[%clk
0:01:27.1]} 35. Bxf6 {[%clk 0:00:33.1]} 35... Qd6 {[%clk 0:01:27.8]} 36. Be5
{[%clk 0:00:30.3]} 36... Qe7 {[%clk 0:01:26.2]} 37. Bf6 {[%clk 0:00:31.1]} 37...
Qd7 {[%clk 0:01:22.6]} 38. d6 {[%clk 0:00:29.5]} 38... Re8 {[%clk 0:01:18.8]}
39. Rd5 {[%clk 0:00:28.4]} 39... Re6 {[%clk 0:01:19]} 40. Be5 {[%clk 0:00:26.6]}
40... Rce8 {[%clk 0:01:19.6]} 41. Rad1 {[%clk 0:00:24.6]} 41... h5 {[%clk
0:01:05.2]} 42. h4 {[%clk 0:00:22.4]} 42... Kh7 {[%clk 0:01:05.7]} 43. Bc3
{[%clk 0:00:18]} 43... Bxc3 {[%clk 0:01:04.3]} 44. Qxc3 {[%clk 0:00:18.8]} 44...
e3 {[%clk 0:01:05.1]} 45. Bf3 {[%clk 0:00:12]} 45... exf2+ {[%clk 0:01:04.7]}
46. Kxf2 {[%clk 0:00:12.2]} 46... Re2+ {[%clk 0:01:03.3]} 47. Kf1 {[%clk
0:00:11.4]} 47... R2e3 {[%clk 0:01:04.2]} 48. R5d3 {[%clk 0:00:06.4]} 48... Nxd3
{[%clk 0:01:02]} 49. Rxd3 {[%clk 0:00:07.1]} 49... Rxf3+ {[%clk 0:00:28.3]} 50.
Rxf3 {[%clk 0:00:07.3]} 50... Qxd6 {[%clk 0:00:29.3]} 51. Rd3 {[%clk 0:00:08]}
51... Qe6 {[%clk 0:00:29.9]} 52. Kg2 {[%clk 0:00:04.5]} 52... Qe2+ {[%clk
0:00:29.5]} 53. Kg1 {[%clk 0:00:03.3]} 53... Qe6 {[%clk 0:00:29]} 0-1

[Event "*** Titled Tuesday 3|2 Blitz"]
[Site "Chess.com"]
[Date "2016.03.01"]
[Round "1"]
[White "FairChess_on_YouTube"]
[Black "biostatistician"]
[Result "1-0"]
[WhiteElo "2711"]
[BlackElo "2347"]
[TimeControl "180+2"]
[EndTime "11:41:06 PST"]
[Termination "FairChess_on_YouTube won by resignation"]

1. d4 {[%clk 0:03:00]} 1... Nf6 {[%clk 0:03:00.7]} 2. c4 {[%clk 0:03:01.2]} 2...
g6 {[%clk 0:03:02.3]} 3. Nc3 {[%clk 0:03:00.5]} 3... Bg7 {[%clk 0:03:04.2]} 4.
e4 {[%clk 0:03:01.2]} 4... O-O {[%clk 0:03:05.6]} 5. Be2 {[%clk 0:02:59.7]} 5...
d6 {[%clk 0:03:06.1]} 6. Bg5 {[%clk 0:03:00.5]} 6... c5 {[%clk 0:03:03.2]} 7. d5
{[%clk 0:02:56.5]} 7... e6 {[%clk 0:03:04.2]} 8. Nf3 {[%clk 0:02:53.5]} 8...
exd5 {[%clk 0:03:05.3]} 9. exd5 {[%clk 0:02:54.4]} 9... h6 {[%clk 0:03:04.1]}
10. Bh4 {[%clk 0:02:46.9]} 10... Re8 {[%clk 0:03:04.5]} 11. O-O {[%clk
0:02:46.3]} 11... Bf5 {[%clk 0:03:03.7]} 12. Bd3 {[%clk 0:02:44.9]} 12... Bxd3
{[%clk 0:03:04.7]} 13. Qxd3 {[%clk 0:02:46.3]} 13... a6 {[%clk 0:03:03.6]} 14.
Rae1 {[%clk 0:02:38]} 14... Nbd7 {[%clk 0:03:04.5]} 15. Bg3 {[%clk 0:02:31.5]}
15... Qc7 {[%clk 0:03:03.2]} 16. h3 {[%clk 0:02:28.9]} 16... Rxe1 {[%clk
0:02:50.8]} 17. Rxe1 {[%clk 0:02:30.8]} 17... Re8 {[%clk 0:02:51.5]} 18. Rxe8+
{[%clk 0:02:16.6]} 18... Nxe8 {[%clk 0:02:53.4]} 19. b3 {[%clk 0:02:13.7]} 19...
Qd8 {[%clk 0:02:34]} 20. Ne4 {[%clk 0:02:10.3]} 20... Qe7 {[%clk 0:02:31.4]} 21.
Qe3 {[%clk 0:02:11.4]} 21... Kf8 {[%clk 0:02:27]} 22. Ned2 {[%clk 0:02:01.3]}
22... Qxe3 {[%clk 0:02:25.3]} 23. fxe3 {[%clk 0:02:03.2]} 23... Ke7 {[%clk
0:02:12.1]} 24. e4 {[%clk 0:02:04.3]} 24... Ne5 {[%clk 0:02:06.1]} 25. Kf1
{[%clk 0:02:03.6]} 25... Nd3 {[%clk 0:01:54.1]} 26. a4 {[%clk 0:01:50.7]} 26...
Bc3 {[%clk 0:01:17.9]} 27. Ke2 {[%clk 0:01:48.9]} 27... Nc1+ {[%clk 0:01:17.8]}
28. Kd1 {[%clk 0:01:49.5]} 28... Na2 {[%clk 0:01:13.6]} 29. Kc2 {[%clk
0:01:41.3]} 29... Bg7 {[%clk 0:01:13.7]} 30. Kd3 {[%clk 0:01:39.8]} 30... Nb4+
{[%clk 0:01:12.7]} 31. Ke2 {[%clk 0:01:40.6]} 31... Bc3 {[%clk 0:00:53.8]} 32.
e5 {[%clk 0:01:37.4]} 32... Bxd2 {[%clk 0:00:48]} 33. Nxd2 {[%clk 0:01:34.5]}
33... b6 {[%clk 0:00:38.5]} 34. a5 {[%clk 0:01:28]} 34... bxa5 {[%clk
0:00:36.3]} 35. Ne4 {[%clk 0:01:28.6]} 35... dxe5 {[%clk 0:00:33.6]} 36. Bxe5
{[%clk 0:01:30.5]} 36... f6 {[%clk 0:00:28.8]} 37. Bb8 {[%clk 0:01:29]} 37...
Nc2 {[%clk 0:00:25.9]} 38. Nxc5 {[%clk 0:01:28.6]} 38... Nd6 {[%clk 0:00:20.6]}
39. Kd2 {[%clk 0:01:13.8]} 39... Nd4 {[%clk 0:00:19.8]} 40. Kd3 {[%clk
0:01:14.5]} 40... N4f5 {[%clk 0:00:16.9]} 41. Nxa6 {[%clk 0:01:14.3]} 41... Nh4
{[%clk 0:00:15.4]} 42. c5 {[%clk 0:01:14.3]} 42... Nb5 {[%clk 0:00:15.8]} 43. g4
{[%clk 0:01:09.6]} 43... Nf3 {[%clk 0:00:16.3]} 44. c6 {[%clk 0:01:10.8]} 44...
Ne5+ {[%clk 0:00:13.8]} 45. Ke3 {[%clk 0:00:59.9]} 45... Nf7 {[%clk 0:00:14.6]}
46. Nc5 {[%clk 0:00:55.5]} 46... Nfd6 {[%clk 0:00:14.7]} 47. Nb7 {[%clk
0:00:54.2]} 47... Nc8 {[%clk 0:00:07.9]} 48. Nxa5 {[%clk 0:00:54.4]} 48... Nb6
{[%clk 0:00:07.6]} 49. Ke4 {[%clk 0:00:45.7]} 49... Nc3+ {[%clk 0:00:08.6]} 50.
Kd4 {[%clk 0:00:47.3]} 50... Ncxd5 {[%clk 0:00:10.5]} 51. Kc5 {[%clk 0:00:47.7]}
51... Ke6 {[%clk 0:00:10.2]} 52. Nb7 {[%clk 0:00:42.4]} 52... Nc8 {[%clk
0:00:07.4]} 53. b4 {[%clk 0:00:37]} 53... Nde7 {[%clk 0:00:07.2]} 54. b5 {[%clk
0:00:37.8]} 54... f5 {[%clk 0:00:08.4]} 55. Nd8+ {[%clk 0:00:37.9]} 55... Kf6
{[%clk 0:00:07.6]} 56. gxf5 {[%clk 0:00:39.2]} 56... Nxf5 {[%clk 0:00:08.5]} 57.
b6 {[%clk 0:00:39.5]} 57... Nfe7 {[%clk 0:00:08.9]} 58. b7 {[%clk 0:00:39.2]}
58... g5 {[%clk 0:00:06.8]} 59. Bd6 {[%clk 0:00:36.9]} 59... Na7 {[%clk
0:00:05]} 60. Bxe7+ {[%clk 0:00:36.3]} 60... Kxe7 {[%clk 0:00:05.1]} 61. b8=Q
{[%clk 0:00:38.2]} 1-0

[Event "*** Titled Tuesday 3|2 Blitz"]
[Site "Chess.com"]
[Date "2016.03.01"]
[Round "1"]
[White "Winehouse83"]
[Black "GeorgMeier"]
[Result "1-0"]
[WhiteElo "2371"]
[BlackElo "2746"]
[TimeControl "180+2"]
[EndTime "11:41:43 PST"]
[Termination "Winehouse83 won by resignation"]

1. d4 {[%clk 0:03:00.7]} 1... e6 {[%clk 0:02:55.6]} 2. c4 {[%clk 0:03:00.3]}
2... Nf6 {[%clk 0:02:56.7]} 3. Nf3 {[%clk 0:03:00]} 3... d5 {[%clk 0:02:58.2]}
4. cxd5 {[%clk 0:03:00]} 4... exd5 {[%clk 0:02:59.3]} 5. Nc3 {[%clk 0:03:01.2]}
5... c6 {[%clk 0:03:00.8]} 6. Qc2 {[%clk 0:02:59.3]} 6... g6 {[%clk 0:03:01.3]}
7. e3 {[%clk 0:02:49]} 7... Bf5 {[%clk 0:03:00.4]} 8. Bd3 {[%clk 0:02:49.7]}
8... Bxd3 {[%clk 0:03:01]} 9. Qxd3 {[%clk 0:02:51.6]} 9... Bd6 {[%clk
0:02:59.4]} 10. O-O {[%clk 0:02:49.9]} 10... O-O {[%clk 0:03:00.5]} 11. Ne5
{[%clk 0:02:45.8]} 11... Qe7 {[%clk 0:02:52.7]} 12. f4 {[%clk 0:02:45]} 12...
Bb4 {[%clk 0:02:53.8]} 13. Ne2 {[%clk 0:02:20.4]} 13... Ne4 {[%clk 0:02:51.8]}
14. Ng3 {[%clk 0:02:21.1]} 14... f6 {[%clk 0:02:28.8]} 15. Ng4 {[%clk
0:02:18.2]} 15... Nxg3 {[%clk 0:02:22.8]} 16. hxg3 {[%clk 0:02:17.5]} 16... Nd7
{[%clk 0:02:19.1]} 17. Bd2 {[%clk 0:02:14.4]} 17... Kg7 {[%clk 0:02:09.5]} 18.
Rae1 {[%clk 0:02:00.7]} 18... Rae8 {[%clk 0:02:09.1]} 19. Bxb4 {[%clk
0:01:50.8]} 19... Qxb4 {[%clk 0:02:10]} 20. a3 {[%clk 0:01:51.7]} 20... Qe7
{[%clk 0:02:08.2]} 21. Rf2 {[%clk 0:01:33.4]} 21... Nb6 {[%clk 0:02:06.6]} 22.
Rfe2 {[%clk 0:01:26.4]} 22... Qe4 {[%clk 0:01:53.6]} 23. Qxe4 {[%clk 0:01:10.2]}
23... dxe4 {[%clk 0:01:54.8]} 24. Rc1 {[%clk 0:01:04.2]} 24... h5 {[%clk
0:01:55.7]} 25. Nf2 {[%clk 0:01:04.6]} 25... g5 {[%clk 0:01:53.6]} 26. fxg5
{[%clk 0:00:56.3]} 26... fxg5 {[%clk 0:01:54]} 27. Nh3 {[%clk 0:00:57.4]} 27...
Kg6 {[%clk 0:01:54.8]} 28. Rf1 {[%clk 0:00:57.4]} 28... Nd5 {[%clk 0:01:51.2]}
29. Rxf8 {[%clk 0:00:52.5]} 29... Rxf8 {[%clk 0:01:53.1]} 30. Nf2 {[%clk
0:00:53.1]} 30... Re8 {[%clk 0:01:32.4]} 31. Kf1 {[%clk 0:00:36.9]} 31... a5
{[%clk 0:01:28.2]} 32. Ke1 {[%clk 0:00:28.8]} 32... Kf5 {[%clk 0:01:24.4]} 33.
Kd2 {[%clk 0:00:25.6]} 33... a4 {[%clk 0:01:24.9]} 34. Re1 {[%clk 0:00:26.4]}
34... Re6 {[%clk 0:01:00]} 35. Rf1 {[%clk 0:00:26.4]} 35... Kg6 {[%clk
0:00:59.3]} 36. Nd1 {[%clk 0:00:25.2]} 36... Nf6 {[%clk 0:00:57.7]} 37. Nc3
{[%clk 0:00:25.2]} 37... b5 {[%clk 0:00:58.9]} 38. Ne2 {[%clk 0:00:24.5]} 38...
Rd6 {[%clk 0:00:56.9]} 39. Rc1 {[%clk 0:00:23.8]} 39... Kf5 {[%clk 0:00:47.2]}
40. Rc5+ {[%clk 0:00:22.1]} 40... Nd5 {[%clk 0:00:39.6]} 41. Nc3 {[%clk
0:00:20.8]} 41... Kg4 {[%clk 0:00:33.2]} 42. Nxe4 {[%clk 0:00:20.9]} 42... Re6
{[%clk 0:00:34]} 43. Kd3 {[%clk 0:00:21.8]} 43... h4 {[%clk 0:00:33.2]} 44. gxh4
{[%clk 0:00:21.9]} 44... gxh4 {[%clk 0:00:35.1]} 45. Rc1 {[%clk 0:00:22.3]}
45... Nf6 {[%clk 0:00:31.2]} 46. Nxf6+ {[%clk 0:00:17.7]} 46... Rxf6 {[%clk
0:00:33.1]} 47. Rc5 {[%clk 0:00:18.3]} 47... Rf2 {[%clk 0:00:32.1]} 48. Rxc6
{[%clk 0:00:18.1]} 48... Rxb2 {[%clk 0:00:32.4]} 49. d5 {[%clk 0:00:19.5]} 49...
Rb3+ {[%clk 0:00:25.3]} 50. Ke4 {[%clk 0:00:20.6]} 50... Rxa3 {[%clk 0:00:19.6]}
51. Rg6+ {[%clk 0:00:21.4]} 51... Kh5 {[%clk 0:00:20.3]} 52. Rb6 {[%clk
0:00:22.2]} 52... Ra1 {[%clk 0:00:11.7]} 53. Rxb5 {[%clk 0:00:22.2]} 53... Kg6
{[%clk 0:00:10.4]} 54. d6 {[%clk 0:00:22.9]} 54... Kf7 {[%clk 0:00:10.7]} 55.
Ke5 {[%clk 0:00:21]} 55... Re1 {[%clk 0:00:11]} 56. e4 {[%clk 0:00:20.4]} 56...
a3 {[%clk 0:00:11]} 57. Ra5 {[%clk 0:00:21.4]} 57... Re3 {[%clk 0:00:11.5]} 58.
Ra7+ {[%clk 0:00:21.5]} 58... Ke8 {[%clk 0:00:12.6]} 59. Kf5 {[%clk 0:00:22.2]}
59... Rg3 {[%clk 0:00:08.8]} 60. e5 {[%clk 0:00:20.7]} 60... Rxg2 {[%clk
0:00:08.1]} 61. Rxa3 {[%clk 0:00:19.9]} 61... Kd7 {[%clk 0:00:08.3]} 62. Ra7+
{[%clk 0:00:20.8]} 62... Kc6 {[%clk 0:00:09.8]} 63. Rc7+ {[%clk 0:00:21.8]}
63... Kb6 {[%clk 0:00:11.1]} 64. Rh7 {[%clk 0:00:23.2]} 64... Kc6 {[%clk
0:00:09.9]} 65. Rxh4 {[%clk 0:00:23.1]} 65... Rf2+ {[%clk 0:00:10.9]} 66. Ke6
{[%clk 0:00:23.4]} 66... Rf8 {[%clk 0:00:11.4]} 67. Rc4+ {[%clk 0:00:23.6]} 1-0

[Event "*** Titled Tuesday 3|2 Blitz"]
[Site "Chess.com"]
[Date "2016.03.01"]
[Round "1"]
[White "pKiLz5Rn9b"]
[Black "Tesla17"]
[Result "1-0"]
[WhiteElo "2521"]
[BlackElo "2231"]
[TimeControl "180+2"]
[EndTime "11:44:28 PST"]
[Termination "pKiLz5Rn9b won by resignation"]

1. e4 {[%clk 0:03:01.9]} 1... c5 {[%clk 0:03:00.5]} 2. c3 {[%clk 0:03:02.6]}
2... d5 {[%clk 0:03:01]} 3. exd5 {[%clk 0:03:03.9]} 3... Qxd5 {[%clk 0:03:02.9]}
4. d4 {[%clk 0:03:05.5]} 4... Nc6 {[%clk 0:03:03.9]} 5. Nf3 {[%clk 0:03:06.9]}
5... Bf5 {[%clk 0:03:05.1]} 6. Be2 {[%clk 0:03:06.9]} 6... cxd4 {[%clk
0:03:00.8]} 7. cxd4 {[%clk 0:03:07.9]} 7... Bxb1 {[%clk 0:03:01.8]} 8. Rxb1
{[%clk 0:03:08.5]} 8... e6 {[%clk 0:03:03.4]} 9. a3 {[%clk 0:03:06.9]} 9... Nf6
{[%clk 0:03:03.3]} 10. O-O {[%clk 0:03:08.1]} 10... Bd6 {[%clk 0:03:03.3]} 11.
Be3 {[%clk 0:03:09.3]} 11... O-O {[%clk 0:03:04.1]} 12. Rc1 {[%clk 0:03:10.9]}
12... Rfd8 {[%clk 0:03:01.1]} 13. h3 {[%clk 0:03:12.2]} 13... Rac8 {[%clk
0:03:00]} 14. Qd3 {[%clk 0:03:06.5]} 14... Ne7 {[%clk 0:02:59]} 15. Rfd1 {[%clk
0:03:04.8]} 15... h6 {[%clk 0:02:57.2]} 16. Nd2 {[%clk 0:02:57.9]} 16... Bb8
{[%clk 0:02:46.8]} 17. Bf3 {[%clk 0:02:46.2]} 17... Qd6 {[%clk 0:02:43]} 18. g3
{[%clk 0:02:46.6]} 18... Ned5 {[%clk 0:02:43.7]} 19. Nc4 {[%clk 0:02:47.4]}
19... Qe7 {[%clk 0:02:42.8]} 20. Kg2 {[%clk 0:02:43.2]} 20... a6 {[%clk
0:02:30.1]} 21. Qe2 {[%clk 0:02:35.7]} 21... Qe8 {[%clk 0:02:23]} 22. Ne5 {[%clk
0:02:35]} 22... Rxc1 {[%clk 0:02:23.3]} 23. Rxc1 {[%clk 0:02:36.1]} 23... Rc8
{[%clk 0:02:24.9]} 24. Rc4 {[%clk 0:02:30.7]} 24... Qd8 {[%clk 0:02:05.9]} 25.
Qc2 {[%clk 0:02:26.7]} 25... Rxc4 {[%clk 0:02:06.5]} 26. Nxc4 {[%clk 0:02:18.4]}
26... Qc7 {[%clk 0:02:04.2]} 27. Qe2 {[%clk 0:02:18.7]} 27... Ba7 {[%clk
0:01:53.7]} 28. Ne5 {[%clk 0:02:09.7]} 28... b5 {[%clk 0:01:47]} 29. Qd3 {[%clk
0:02:07.4]} 29... Bb6 {[%clk 0:01:46.6]} 30. Bd2 {[%clk 0:02:06.4]} 30... Qa7
{[%clk 0:01:44.1]} 31. Bc3 {[%clk 0:02:04.7]} 31... Qc7 {[%clk 0:01:43.1]} 32.
h4 {[%clk 0:02:03.5]} 32... Qd6 {[%clk 0:01:29.5]} 33. Bd2 {[%clk 0:02:01.4]}
33... Ne7 {[%clk 0:01:28.4]} 34. Be3 {[%clk 0:01:53.2]} 34... Nfd5 {[%clk
0:01:13.4]} 35. Be4 {[%clk 0:01:42.7]} 35... Nf6 {[%clk 0:01:01.4]} 36. Bf3
{[%clk 0:01:43.6]} 36... Ned5 {[%clk 0:01:02.2]} 37. Bd2 {[%clk 0:01:41.6]}
37... Ba7 {[%clk 0:00:58.9]} 38. Bc3 {[%clk 0:01:29.9]} 38... Qc7 {[%clk
0:00:56.2]} 39. Bd2 {[%clk 0:01:28.7]} 39... Qb6 {[%clk 0:00:52.3]} 40. Bc3
{[%clk 0:01:26.9]} 40... Bb8 {[%clk 0:00:52.8]} 41. Qd2 {[%clk 0:01:27.2]} 41...
Qd6 {[%clk 0:00:50.1]} 42. Nd3 {[%clk 0:01:27.6]} 42... Ba7 {[%clk 0:00:46.2]}
43. Qc1 {[%clk 0:01:05]} 43... Qc7 {[%clk 0:00:42]} 44. Qd2 {[%clk 0:01:00.6]}
44... Qd6 {[%clk 0:00:40.4]} 45. Qc1 {[%clk 0:01:01.8]} 45... Qe7 {[%clk
0:00:38.7]} 46. Qe1 {[%clk 0:00:59.2]} 46... Qd8 {[%clk 0:00:37]} 47. Nc5 {[%clk
0:00:54.2]} 47... Qd6 {[%clk 0:00:33]} 48. Bb4 {[%clk 0:00:47.5]} 48... a5
{[%clk 0:00:11.1]} 49. Ne4 {[%clk 0:00:43.5]} 49... Qd7 {[%clk 0:00:03.5]} 50.
Bc5 {[%clk 0:00:43.5]} 50... Bb8 {[%clk 0:00:03.2]} 51. Qxa5 {[%clk 0:00:41.9]}
51... Nxe4 {[%clk 0:00:03.5]} 52. Bxe4 {[%clk 0:00:43.8]} 52... Nf6 {[%clk
0:00:04.8]} 53. Qa8 {[%clk 0:00:44]} 53... Nxe4 {[%clk 0:00:04.2]} 54. Qxe4
{[%clk 0:00:45.9]} 54... Qc7 {[%clk 0:00:05.2]} 55. b4 {[%clk 0:00:45.4]} 55...
Qd7 {[%clk 0:00:06.5]} 56. Kf3 {[%clk 0:00:46.2]} 56... f5 {[%clk 0:00:07.6]}
57. Qa8 {[%clk 0:00:46.5]} 57... Qc7 {[%clk 0:00:06.3]} 58. Qa6 {[%clk
0:00:43.9]} 58... Qd7 {[%clk 0:00:07]} 59. Qa8 {[%clk 0:00:44.8]} 59... Qc7
{[%clk 0:00:08.2]} 60. a4 {[%clk 0:00:46.3]} 60... bxa4 {[%clk 0:00:08.9]} 61.
Qxa4 {[%clk 0:00:48.2]} 61... Kf7 {[%clk 0:00:10.4]} 62. b5 {[%clk 0:00:47.9]}
62... Qb7+ {[%clk 0:00:11.8]} 63. Ke2 {[%clk 0:00:47.1]} 63... Qe4+ {[%clk
0:00:13.2]} 64. Kd2 {[%clk 0:00:48.6]} 64... f4 {[%clk 0:00:14.7]} 65. b6 {[%clk
0:00:32.8]} 65... fxg3 {[%clk 0:00:15.4]} 66. Qd7+ {[%clk 0:00:33.9]} 66... Kg6
{[%clk 0:00:15.5]} 67. fxg3 {[%clk 0:00:33.4]} 67... Bxg3 {[%clk 0:00:15.7]} 68.
Qe8+ {[%clk 0:00:23.4]} 68... Kh7 {[%clk 0:00:16.3]} 69. h5 {[%clk 0:00:24.7]}
69... Bf4+ {[%clk 0:00:15.1]} 70. Kc3 {[%clk 0:00:26.2]} 70... Qe3+ {[%clk
0:00:15.5]} 71. Kb4 {[%clk 0:00:26.3]} 71... Qe2 {[%clk 0:00:14.9]} 72. Qg6+
{[%clk 0:00:23.7]} 72... Kg8 {[%clk 0:00:16.4]} 73. Qe8+ {[%clk 0:00:15.5]}
73... Kh7 {[%clk 0:00:17.4]} 74. Qb5 {[%clk 0:00:09.4]} 74... Bd2+ {[%clk
0:00:18.4]} 75. Ka4 {[%clk 0:00:07.9]} 75... Qd1+ {[%clk 0:00:19.6]} 76. Qb3
{[%clk 0:00:08.7]} 76... Qa1+ {[%clk 0:00:20.4]} 77. Kb5 {[%clk 0:00:10.2]}
77... Qa8 {[%clk 0:00:20.7]} 78. Qxe6 {[%clk 0:00:09.8]} 78... Qa5+ {[%clk
0:00:19.6]} 79. Kc6 {[%clk 0:00:11]} 79... Qa4+ {[%clk 0:00:20.9]} 80. Kb7
{[%clk 0:00:10]} 80... Kh8 {[%clk 0:00:20.5]} 81. Qc6 {[%clk 0:00:10.8]} 81...
Qb3 {[%clk 0:00:21.1]} 82. Kc8 {[%clk 0:00:09.9]} 82... Qg8+ {[%clk 0:00:21.4]}
83. Kb7 {[%clk 0:00:11.2]} 83... Qf7+ {[%clk 0:00:23]} 84. Ka6 {[%clk
0:00:09.8]} 84... Qa2+ {[%clk 0:00:24]} 85. Kb7 {[%clk 0:00:11.3]} 85... Qf7+
{[%clk 0:00:24.8]} 86. Qc7 {[%clk 0:00:12.8]} 86... Qd5+ {[%clk 0:00:25.8]} 87.
Ka7 {[%clk 0:00:10.1]} 87... Qa2+ {[%clk 0:00:26.1]} 88. Kb8 {[%clk 0:00:11.7]}
88... Kh7 {[%clk 0:00:22.7]} 89. b7 {[%clk 0:00:11.6]} 89... Qd5 {[%clk
0:00:23.2]} 90. Kc8 {[%clk 0:00:09.8]} 90... Qe6+ {[%clk 0:00:23.8]} 91. Qd7
{[%clk 0:00:10.8]} 91... Qg8+ {[%clk 0:00:23.6]} 92. Kc7 {[%clk 0:00:10.1]}
92... Bf4+ {[%clk 0:00:24.5]} 93. Bd6 {[%clk 0:00:11.6]} 93... Qc4+ {[%clk
0:00:25.3]} 94. Qc6 {[%clk 0:00:13.1]} 94... Qf7+ {[%clk 0:00:20.6]} 95. Qd7
{[%clk 0:00:07.9]} 95... Qc4+ {[%clk 0:00:18]} 96. Kb8 {[%clk 0:00:06.4]} 96...
Qxd4 {[%clk 0:00:17.2]} 97. Qf5+ {[%clk 0:00:07]} 97... Kh8 {[%clk 0:00:17.8]}
98. Qxf4 {[%clk 0:00:07.5]} 1-0

[Event "*** Titled Tuesday 3|2 Blitz"]
[Site "Chess.com"]
[Date "2016.03.01"]
[Round "2"]
[White "Rickstereo"]
[Black "Saitama_Hero"]
[Result "1-0"]
[WhiteElo "2174"]
[BlackElo "2067"]
[TimeControl "180+2"]
[EndTime "11:50:28 PST"]
[Termination "Rickstereo won by resignation"]

1. c4 {[%clk 0:03:01.9]} 1... Nf6 {[%clk 0:03:01]} 2. Nf3 {[%clk 0:02:59.9]}
2... g6 {[%clk 0:03:02.9]} 3. d4 {[%clk 0:02:59.7]} 3... d6 {[%clk 0:03:04.4]}
4. Nc3 {[%clk 0:03:01.2]} 4... Bg7 {[%clk 0:03:05.5]} 5. e4 {[%clk 0:03:02.8]}
5... O-O {[%clk 0:03:07.4]} 6. Be2 {[%clk 0:03:02.4]} 6... c5 {[%clk 0:03:08.3]}
7. O-O {[%clk 0:03:03.4]} 7... cxd4 {[%clk 0:03:08.1]} 8. Nxd4 {[%clk
0:03:03.1]} 8... Nc6 {[%clk 0:03:10]} 9. Nxc6 {[%clk 0:02:47.7]} 9... bxc6
{[%clk 0:03:09.3]} 10. Be3 {[%clk 0:02:48.8]} 10... Rb8 {[%clk 0:03:06.5]} 11.
b3 {[%clk 0:02:49.6]} 11... Qa5 {[%clk 0:03:00.1]} 12. Rc1 {[%clk 0:02:49.8]}
12... Nd7 {[%clk 0:02:54.5]} 13. Bd2 {[%clk 0:02:34.1]} 13... Nc5 {[%clk
0:02:48.8]} 14. Nd5 {[%clk 0:02:27.5]} 14... Qd8 {[%clk 0:02:47.9]} 15. Nc3
{[%clk 0:02:22.8]} 15... Bxc3 {[%clk 0:02:47.2]} 16. Bxc3 {[%clk 0:02:24.7]}
16... Nxe4 {[%clk 0:02:46.5]} 17. Ba1 {[%clk 0:02:25.6]} 17... c5 {[%clk
0:02:39.7]} 18. Bf3 {[%clk 0:02:24.5]} 18... Ng5 {[%clk 0:02:34.9]} 19. Bd5
{[%clk 0:02:22.2]} 19... e6 {[%clk 0:02:32.5]} 20. Bc6 {[%clk 0:02:21]} 20...
Qc7 {[%clk 0:02:30.8]} 21. Bf3 {[%clk 0:02:09.3]} 21... Nxf3+ {[%clk 0:02:17]}
22. Qxf3 {[%clk 0:02:11.2]} 22... e5 {[%clk 0:02:11.3]} 23. Rcd1 {[%clk
0:02:10.9]} 23... f6 {[%clk 0:01:59.3]} 24. Qd5+ {[%clk 0:02:08.9]} 24... Qf7
{[%clk 0:01:54.9]} 25. Qxd6 {[%clk 0:02:07.9]} 25... Bb7 {[%clk 0:01:49.2]} 26.
Qxc5 {[%clk 0:02:05.7]} 26... Ba8 {[%clk 0:01:44]} 27. Rd6 {[%clk 0:01:49]}
27... Rbc8 {[%clk 0:01:35.6]} 28. Qe3 {[%clk 0:01:48.1]} 28... Rfd8 {[%clk
0:01:35.6]} 29. Rfd1 {[%clk 0:01:48]} 29... Qe7 {[%clk 0:01:36.3]} 30. Qd2
{[%clk 0:01:45.5]} 30... Rxd6 {[%clk 0:01:29.2]} 31. Qxd6 {[%clk 0:01:47.4]}
31... Qb7 {[%clk 0:01:29.7]} 32. Qe6+ {[%clk 0:01:46]} 1-0

[Event "*** Titled Tuesday 3|2 Blitz"]
[Site "Chess.com"]
[Date "2016.03.01"]
[Round "2"]
[White "LuckyTiger"]
[Black "VovAn1991"]
[Result "1-0"]
[WhiteElo "2587"]
[BlackElo "2455"]
[TimeControl "180+2"]
[EndTime "11:50:33 PST"]
[Termination "LuckyTiger won by resignation"]

1. e4 {[%clk 0:02:54.3]} 1... c5 {[%clk 0:03:00]} 2. c3 {[%clk 0:02:54.1]} 2...
Nf6 {[%clk 0:02:59.5]} 3. e5 {[%clk 0:02:55.1]} 3... Nd5 {[%clk 0:03:00.6]} 4.
Nf3 {[%clk 0:02:56.8]} 4... e6 {[%clk 0:02:58.5]} 5. d4 {[%clk 0:02:55.7]} 5...
cxd4 {[%clk 0:02:58]} 6. Bc4 {[%clk 0:02:57.2]} 6... dxc3 {[%clk 0:02:31.2]} 7.
Bxd5 {[%clk 0:02:57.9]} 7... cxb2 {[%clk 0:02:32.3]} 8. Bxb2 {[%clk 0:02:59.6]}
8... Qa5+ {[%clk 0:02:33.3]} 9. Nc3 {[%clk 0:02:48.9]} 9... exd5 {[%clk
0:02:34.3]} 10. O-O {[%clk 0:02:48.7]} 10... Nc6 {[%clk 0:02:25.2]} 11. Nxd5
{[%clk 0:02:38.1]} 11... Bc5 {[%clk 0:02:06.2]} 12. Ng5 {[%clk 0:02:17.8]} 12...
Ne7 {[%clk 0:01:47.7]} 13. Qh5 {[%clk 0:01:45.8]} 13... Nxd5 {[%clk 0:01:32.9]}
14. Qxf7+ {[%clk 0:01:42.5]} 14... Kd8 {[%clk 0:01:34.1]} 15. Rad1 {[%clk
0:01:40.7]} 15... Rf8 {[%clk 0:01:18.7]} 16. Qxd5 {[%clk 0:01:29.2]} 16... Ke8
{[%clk 0:00:51.5]} 17. Ne4 {[%clk 0:01:25.3]} 17... Bb4 {[%clk 0:00:34.3]} 18.
Nd6+ {[%clk 0:01:25.5]} 18... Kd8 {[%clk 0:00:27.8]} 19. Nxb7+ {[%clk
0:01:20.7]} 1-0